bitfinex/quotes_BTCUSD_20251124
["timestamp","ask_amount","ask_price","bid_price","bid_amount"]
[1763971792394,0.323,87032.0,87027.0,0.00011773]
[1763971792595,0.00791,87028.0,87027.0,0.00011773]
[1763971793214,0.323,87030.0,87027.0,0.00011773]
[1763971793832,0.00027579,87045.0,87027.0,0.00011773]
[1763971793833,0.323,87037.0,87029.0,0.01756]
[1763971793994,1.516038,87034.0,87029.0,0.01756]
[1763971794199,0.323,87031.0,87029.0,0.01756]
[1763971794408,0.323,87033.0,87029.0,0.01756]
[1763971794409,1.516038,87039.0,87029.0,0.01756]
[1763971794606,1.516038,87039.0,87030.0,0.01756]
[1763971795998,1.516038,87049.0,87038.0,0.03145]
[1763971796212,1.516038,87049.0,87029.0,0.001]
[1763971796213,0.00791,87039.0,87029.0,0.001]
[1763971796426,1.523948,87030.0,87029.0,0.001]
[1763971796810,1.58254489,87030.0,87029.0,0.001]
[1763971797012,1.58254489,87030.0,87027.0,0.00011773]
[1763971797013,1.60050567,87030.0,87027.0,0.00011773]
[1763971797225,2.032948,87028.0,87027.0,0.00011773]
[1763971797422,1.86604057,87028.0,87027.0,0.00011773]
[1763971797646,1.66178715,87028.0,87027.0,0.00011773]
[1763971797848,1.98478715,87028.0,87027.0,0.00011773]
[1763971798129,1.97478715,87028.0,87027.0,0.00011773]
[1763971798704,1.97410026,87028.0,87027.0,0.00011773]
[1763971800120,1.97419785,87028.0,87027.0,0.00011773]
[1763971800604,1.83913559,87028.0,87027.0,0.00011773]
[1763971800717,9.759e-05,87046.0,87027.0,0.04345773]
[1763971800934,1.516038,87039.0,87029.0,0.10328148]
[1763971801140,1.516038,87039.0,87027.0,0.00011773]
[1763971801359,0.59583164,87040.0,87027.0,0.00011773]
[1763971801360,1.516038,87037.0,87027.0,0.00011773]
[1763971801570,1.516038,87039.0,87028.0,0.10328148]
[1763971802696,0.59583164,87040.0,87029.0,0.02578]
[1763971803687,1.516038,87039.0,87029.0,0.04876084]
[1763971804538,1.516038,87039.0,87029.0,0.02578]
[1763971805078,0.59583164,87040.0,87029.0,0.02578]
[1763971805079,0.323,87036.0,87030.0,0.16938058]
[1763971805230,0.323,87032.0,87030.0,0.16938058]
[1763971805441,0.323,87039.0,87030.0,0.16938058]
[1763971805752,0.323,87033.0,87031.0,0.01842]
[1763971806834,0.323,87037.0,87031.0,0.01842]
[1763971807053,0.323,87035.0,87031.0,0.01842]
[1763971807306,0.59583164,87040.0,87030.0,0.17038058]
[1763971807307,0.323,87039.0,87030.0,0.17038058]
[1763971807445,0.323,87037.0,87030.0,0.17038058]
[1763971807642,0.323,87033.0,87031.0,0.001]
[1763971807845,0.323,87033.0,87031.0,0.002]
[1763971808054,0.323,87033.0,87031.0,0.001]
[1763971808254,0.323,87033.0,87031.0,0.002]
[1763971808460,2.33062,87032.0,87031.0,0.001]
[1763971808658,2.0,87031.0,87030.0,0.001]
[1763971809489,2.01524,87031.0,87030.0,0.001]
[1763971809696,2.0163526,87031.0,87030.0,0.001]
[1763971810024,2.0,87030.0,87027.0,0.00011773]
[1763971810192,2.00762,87028.0,87027.0,0.00011773]
[1763971810608,2.01638037,87028.0,87027.0,0.00011773]
[1763971810826,2.00876037,87028.0,87027.0,0.00011773]
[1763971811578,2.01638037,87028.0,87027.0,0.00011773]
[1763971811809,2.01638037,87028.0,87027.0,0.00111773]
[1763971812061,2.0084843,87028.0,87027.0,0.00111773]
[1763971812321,2.3314843,87028.0,87027.0,0.00111773]
[1763971812558,2.3238643,87028.0,87027.0,0.00111773]
[1763971813709,2.323,87028.0,87027.0,0.00111773]
[1763971814171,2.33062,87028.0,87027.0,0.00111773]
[1763971815608,2.323,87028.0,87027.0,0.00111773]
[1763971815859,2.33585,87028.0,87027.0,0.00111773]
[1763971816119,2.01285,87028.0,87027.0,0.04663773]
[1763971816354,0.00762,87028.0,87027.0,0.00111773]
[1763971816619,2.05595062,87028.0,87027.0,0.00111773]
[1763971816851,2.05710586,87028.0,87027.0,0.00111773]
[1763971818449,2.05810586,87028.0,87027.0,0.00111773]
[1763971818865,2.05810586,87028.0,87027.0,0.00011773]
[1763971819290,2.38110586,87028.0,87027.0,0.00011773]
[1763971819868,2.37348586,87028.0,87027.0,0.00011773]
[1763971820319,2.05048586,87028.0,87027.0,0.00011773]
[1763971820521,2.04286586,87028.0,87027.0,0.00011773]
[1763971820682,2.04098675,87028.0,87027.0,0.00011773]
[1763971820894,2.02298375,87028.0,87027.0,0.01853773]
[1763971821250,2.34598375,87028.0,87027.0,0.01853773]
[1763971821389,2.34598375,87028.0,87027.0,0.04563773]
[1763971822156,2.34598375,87028.0,87027.0,0.00011773]
[1763971822562,2.35360375,87028.0,87027.0,0.00011773]
[1763971822856,2.35360375,87028.0,87027.0,0.00111773]
[1763971823172,2.35360375,87028.0,87027.0,0.00211773]
[1763971823538,2.35360375,87028.0,87027.0,0.00111773]
[1763971823842,2.36122375,87028.0,87027.0,0.00111773]
[1763971824259,2.37983795,87028.0,87027.0,0.00111773]
[1763971824495,2.38011409,87028.0,87027.0,0.00111773]
[1763971824909,2.37249409,87028.0,87027.0,0.00111773]
[1763971825243,2.35449076,87028.0,87027.0,0.00111773]
[1763971825446,2.34598375,87028.0,87027.0,0.00111773]
[1763971825592,2.34598375,87028.0,87027.0,0.00011773]
[1763971825964,2.34698375,87028.0,87027.0,0.00011773]
[1763971826170,2.34598375,87028.0,87027.0,0.00011773]
[1763971826789,2.34598375,87028.0,87027.0,0.01853773]
[1763971826994,2.34598375,87028.0,87027.0,0.04563773]
[1763971827596,2.34598375,87028.0,87027.0,0.01953773]
[1763971827822,2.34598375,87028.0,87027.0,0.00111773]
[1763971827823,2.323,87028.0,87027.0,0.00111773]
[1763971828026,2.34253773,87028.0,87027.0,0.00111773]
[1763971829067,2.34253773,87028.0,87027.0,0.02053773]
[1763971830318,2.323,87028.0,87027.0,0.04763773]
[1763971831040,2.0,87047.0,87027.0,0.19403773]
[1763971831250,2.0,87046.0,87043.0,0.10328148]
[1763971831400,0.03455486,87046.0,87044.0,0.01285]
[1763971831603,2.0,87045.0,87044.0,0.01285]
[1763971831919,0.3575543,87048.0,87044.0,0.01285]
[1763971832101,2.323,87045.0,87044.0,0.01285]
[1763971832888,0.0345543,87048.0,87036.0,0.01285]
[1763971832889,0.323,87042.0,87036.0,0.01285]
[1763971833084,0.0345543,87048.0,87036.0,0.01285]
[1763971833085,0.323,87038.0,87036.0,0.01285]
[1763971833341,0.323,87038.0,87030.0,0.01285]
[1763971834294,0.323,87039.0,87030.0,0.01285]
[1763971834696,0.323,87039.0,87031.0,0.1464]
[1763971835770,2.0,87043.0,87031.0,0.1464]
[1763971837604,2.0,87040.0,87031.0,0.1464]
[1763971838285,0.03455781,87039.0,87027.0,0.00011773]
[1763971838604,2.0,87038.0,87029.0,0.10328148]
[1763971838751,0.323,87037.0,87029.0,0.10328148]
[1763971838994,0.323,87035.0,87029.0,0.10328148]
[1763971839156,0.323,87031.0,87029.0,0.10328148]
[1763971839358,2.323,87030.0,87029.0,0.10328148]
[1763971839804,2.323,87030.0,87029.0,0.10428148]
[1763971840439,2.323,87030.0,87029.0,0.10528148]
[1763971840641,2.323,87030.0,87029.0,0.10428148]
[1763971840873,2.32796,87030.0,87029.0,0.002]
[1763971841072,2.32796,87030.0,87029.0,0.001]
[1763971841073,2.34596349,87030.0,87029.0,0.001]
[1763971841252,2.34596349,87030.0,87029.0,0.002]
[1763971841656,2.35092349,87030.0,87029.0,0.002]
[1763971841895,2.35181881,87030.0,87029.0,0.001]
[1763971842095,2.35181881,87030.0,87027.0,0.00011773]
[1763971842096,0.323,87029.0,87027.0,0.00011773]
[1763971842236,2.32389532,87030.0,87027.0,0.00011773]
[1763971842237,2.323,87028.0,87027.0,0.00011773]
[1763971842437,2.32796,87028.0,87027.0,0.00011773]
[1763971842673,2.33381532,87028.0,87027.0,0.00011773]
[1763971843273,2.33409147,87028.0,87027.0,0.00011773]
[1763971843482,2.34685881,87028.0,87027.0,0.00011773]
[1763971843683,2.34189881,87028.0,87027.0,0.00011773]
[1763971844487,2.34685881,87028.0,87027.0,0.00011773]
[1763971845513,2.34189881,87028.0,87027.0,0.00011773]
[1763971846246,2.34162266,87028.0,87027.0,0.00011773]
[1763971846789,2.323,87028.0,87027.0,0.01652773]
[1763971846988,2.323,87028.0,87027.0,0.04061773]
[1763971847515,2.323,87028.0,87027.0,0.01652773]
[1763971847917,2.323,87028.0,87027.0,0.00111773]
[1763971848551,2.32678,87028.0,87027.0,0.00211773]
[1763971849710,2.34450734,87028.0,87027.0,0.00211773]
[1763971849877,2.34450734,87028.0,87027.0,0.00111773]
[1763971850260,2.34828734,87028.0,87027.0,0.00011773]
[1763971850462,2.34828734,87028.0,87027.0,0.00111773]
[1763971850984,2.16597891,87028.0,87027.0,0.00011773]
[1763971851368,2.16219891,87028.0,87027.0,0.00011773]
[1763971851534,2.20054205,87028.0,87027.0,0.00011773]
[1763971851738,2.2008182,87028.0,87027.0,0.00011773]
[1763971851979,2.20171404,87028.0,87027.0,0.00011773]
[1763971853049,2.03430217,87028.0,87027.0,0.00011773]
[1763971853229,2.03808217,87028.0,87027.0,0.00011773]
[1763971853427,2.03430217,87028.0,87027.0,0.00011773]
[1763971854932,2.03808217,87028.0,87027.0,0.00011773]
[1763971856200,2.03430217,87028.0,87027.0,0.00011773]
[1763971856410,2.03808217,87028.0,87027.0,0.00011773]
[1763971857370,2.03430217,87028.0,87027.0,0.00011773]
[1763971858074,2.03052217,87028.0,87027.0,0.00011773]
[1763971858205,2.03024602,87028.0,87027.0,0.00011773]
[1763971858402,2.02935018,87028.0,87027.0,0.00011773]
[1763971860587,2.03313018,87028.0,87027.0,0.00011773]
[1763971861970,2.03860018,87028.0,87027.0,0.00011773]
[1763971862539,2.03887633,87028.0,87027.0,0.00011773]
[1763971862738,2.03887633,87028.0,87023.0,0.0002519]
[1763971862739,0.2298196,87025.0,87023.0,0.0002519]
[1763971862934,1.76281118,87024.0,87023.0,0.00036978]
[1763971863059,1.78628467,87024.0,87023.0,0.00036978]
[1763971863257,1.78628467,87024.0,86976.0,0.01259]
[1763971863258,0.01149147,87021.0,86976.0,0.01259]
[1763971863479,1.79777575,87024.0,86988.0,0.01270731]
[1763971863480,0.50547,87023.0,86988.0,0.01270731]
[1763971863702,2.0,86999.0,86988.0,0.01270731]
[1763971864096,0.00010837,86998.0,86988.0,0.01270731]
[1763971864301,0.03468251,86998.0,86988.0,0.01270731]
[1763971864822,0.00027615,86997.0,86990.0,0.00025209]
[1763971865086,0.00027615,86997.0,86990.0,0.02324323]
[1763971865260,0.00027615,86997.0,86990.0,0.00025209]
[1763971865666,0.00027615,86997.0,86990.0,0.02324323]
[1763971866440,0.00027615,86997.0,86990.0,0.00025209]
[1763971866850,2.0,86999.0,86990.0,0.00025209]
[1763971867211,2.0,86998.0,86990.0,0.00025209]
[1763971867535,2.0,86998.0,86990.0,0.00125209]
[1763971868575,2.0,86999.0,86997.0,0.01717]
[1763971868856,2.0,86999.0,86998.0,0.01717]
[1763971869753,2.0,86999.0,86997.0,0.02298929]
[1763971869972,2.0,86999.0,86998.0,0.04372]
[1763971870170,0.01185788,87000.0,86998.0,0.04372]
[1763971870369,0.89149101,87020.0,86999.0,0.06670876]
[1763971870603,2.0,87019.0,86999.0,0.06670876]
[1763971871578,2.0,87019.0,87000.0,0.02655]
[1763971871773,2.0,87019.0,87001.0,0.02298824]
[1763971872220,2.0,87019.0,87002.0,0.02655]
[1763971872221,2.0,87018.0,87002.0,0.02655]
[1763971872382,2.0,87019.0,87003.0,0.02298771]
[1763971872782,2.0,87018.0,87009.0,0.10328148]
[1763971872990,0.0116853,87020.0,87018.0,0.03012]
[1763971873196,0.00139682,87027.0,87019.0,0.01717]
[1763971873389,2.0,87026.0,87019.0,0.17295]
[1763971873590,0.00139682,87027.0,87020.0,0.05210249]
[1763971873792,0.00139682,87027.0,87026.0,0.08222249]
[1763971874012,0.00139682,87027.0,87026.0,0.03012]
[1763971874218,0.00139682,87027.0,87026.0,0.01295]
[1763971874600,0.00139682,87027.0,87018.0,0.01295]
[1763971874938,0.00139682,87027.0,87026.0,0.03012]
[1763971875374,0.00139682,87027.0,87019.0,0.02655]
[1763971875577,0.00139682,87027.0,87026.0,0.001]
[1763971876151,0.00139682,87027.0,87026.0,0.002]
[1763971876349,0.00139682,87027.0,87026.0,0.001]
[1763971878071,0.00139682,87027.0,87026.0,0.002]
[1763971879158,0.00139682,87027.0,87026.0,0.1484]
[1763971880017,2.01233682,87027.0,87026.0,0.002]
[1763971880237,2.03007915,87027.0,87026.0,0.002]
[1763971881267,2.03007915,87027.0,87026.0,0.001]
[1763971881490,2.03007915,87027.0,87001.0,0.02655]
[1763971881491,2.0,87026.0,87001.0,0.02655]
[1763971881669,2.0,87019.0,87002.0,0.02298797]
[1763971882805,2.0,87024.0,87009.0,0.10328148]
[1763971883003,2.0,87024.0,87010.0,0.02298586]
[1763971883399,2.0,87026.0,87010.0,0.04953586]
[1763971883955,2.323,87026.0,87025.0,0.03012]
[1763971884260,2.0,87026.0,87025.0,0.03012]
[1763971884457,0.323,87026.0,87025.0,0.05667]
[1763971884616,0.00139682,87027.0,87025.0,0.05667]
[1763971884826,0.00139682,87027.0,87026.0,0.04372]
[1763971886533,0.00139682,87027.0,87026.0,0.04472]
[1763971887124,0.00139682,87027.0,87026.0,0.06770163]
[1763971887879,0.00139682,87027.0,87026.0,0.04472]
[1763971888077,0.00139682,87027.0,87026.0,0.06501937]
[1763971888377,0.00139682,87027.0,87026.0,0.06401937]
[1763971888561,0.00139682,87027.0,87026.0,0.06601937]
[1763971889503,0.00139682,87027.0,87026.0,0.06946712]
[1763971891202,0.00139682,87027.0,87026.0,0.12156961]
[1763971892018,0.00139682,87027.0,87026.0,0.12180412]
[1763971892215,0.01175069,87044.0,87031.0,0.05210249]
[1763971892469,0.01175069,87044.0,87030.0,0.89376365]
[1763971892470,0.01186837,87044.0,87043.0,0.15538397]
[1763971892687,0.01186837,87044.0,87043.0,0.18550397]
[1763971892925,0.00011768,87044.0,87043.0,0.21205397]
[1763971894814,0.00011768,87044.0,87043.0,0.21305397]
[1763971895202,0.00011768,87044.0,87043.0,0.21405397]
[1763971895490,0.00011768,87044.0,87043.0,0.21205397]
[1763971895967,0.00011768,87044.0,87043.0,0.21305397]
[1763971896779,0.00011768,87044.0,87043.0,0.23703111]
[1763971896973,0.00011768,87044.0,87043.0,0.23603111]
[1763971897133,0.00011768,87044.0,87043.0,0.38243111]
[1763971897338,0.00011768,87044.0,87043.0,0.35945397]
[1763971898009,0.00011768,87044.0,87043.0,0.36145397]
[1763971898185,0.00065291,87044.0,87043.0,0.36045397]
[1763971898367,0.00065291,87044.0,87043.0,0.36245397]
[1763971898769,0.00065291,87044.0,87043.0,0.36045397]
[1763971899674,0.00065291,87044.0,87043.0,0.35845397]
[1763971900073,0.00065291,87044.0,87043.0,0.36245397]
[1763971902888,0.01180854,87055.0,87049.0,0.14574709]
[1763971903095,0.59520448,87070.0,87054.0,0.02894]
[1763971903294,0.59520448,87070.0,87069.0,0.11962148]
[1763971903489,0.01186765,87070.0,87069.0,0.11962148]
[1763971903695,0.59520448,87079.0,87069.0,0.11962148]
[1763971903896,2.0,87078.0,87069.0,0.10328148]
[1763971905160,2.0,87077.0,87069.0,0.10328148]
[1763971905589,2.0,87077.0,87058.0,0.0262]
[1763971905764,0.59520448,87068.0,87064.0,0.10328148]
[1763971905978,0.00361,87070.0,87064.0,0.10328148]
[1763971906178,2.0,87064.0,87055.0,0.14574709]
[1763971906376,2.0,87064.0,87060.0,0.10328148]
[1763971906581,0.59881448,87065.0,87055.0,0.14574709]
[1763971906582,0.323,87061.0,87055.0,0.14574709]
[1763971906786,0.59520448,87065.0,87039.0,0.11631148]
[1763971906787,0.00361,87056.0,87039.0,0.11631148]
[1763971906995,0.323,87048.0,87039.0,0.11631148]
[1763971908139,0.323,87048.0,87039.0,0.14451148]
[1763971908466,0.323,87048.0,87039.0,0.11831148]
[1763971908862,0.323,87048.0,87039.0,0.10528148]
[1763971909062,0.017364,87060.0,87040.0,0.02297794]
[1763971909328,0.323,87048.0,87041.0,0.0262]
[1763971909491,0.323,87048.0,87042.0,0.02297741]
[1763971909870,0.323,87048.0,87039.0,0.001]
[1763971909871,0.00361,87043.0,87039.0,0.001]
[1763971910070,0.323,87048.0,87039.0,0.001]
[1763971910291,0.323,87048.0,87040.0,0.10328148]
[1763971910489,0.323,87048.0,87040.0,0.10339916]
[1763971910823,0.323,87048.0,87042.0,0.001]
[1763971911261,0.324,87048.0,87040.0,0.00011768]
[1763971911434,2.0,87047.0,87040.0,0.00011768]
[1763971911633,0.001,87048.0,87040.0,0.00011768]
[1763971911634,2.0,87048.0,87040.0,0.00011768]
[1763971911835,0.00361,87041.0,87040.0,0.00011768]
[1763971913080,2.0,87048.0,87040.0,0.00011768]
[1763971913285,2.0,87048.0,87040.0,0.00111768]
[1763971913490,0.323,87047.0,87040.0,0.00111768]
[1763971913742,0.323,87043.0,87040.0,0.00111768]
[1763971913946,0.323,87041.0,87040.0,0.00011768]
[1763971914823,0.59520448,87049.0,87040.0,0.00011768]
[1763971914824,0.323,87048.0,87040.0,0.00011768]
[1763971915030,0.323,87046.0,87040.0,0.00011768]
[1763971915347,2.323,87041.0,87040.0,0.00011768]
[1763971915552,0.323,87041.0,87040.0,0.00011768]
[1763971916616,0.323,87041.0,87040.0,0.00111768]
[1763971918856,0.32661,87041.0,87040.0,0.00111768]
[1763971919295,2.33022,87041.0,87040.0,0.00111768]
[1763971919448,2.3476656,87041.0,87040.0,0.00111768]
[1763971920086,2.3476656,87041.0,87040.0,0.00011768]
[1763971920489,2.3440556,87041.0,87040.0,0.00011768]
[1763971921140,2.3450556,87041.0,87040.0,0.00011768]
[1763971921766,2.3473756,87041.0,87040.0,0.00011768]
[1763971922080,2.3414456,87041.0,87040.0,0.00011768]
[1763971922926,2.001,87041.0,87040.0,0.04393768]
[1763971923227,2.0,87041.0,87040.0,0.04393768]
[1763971923426,0.59520448,87050.0,87040.0,0.04393768]
[1763971923427,2.0,87049.0,87040.0,0.04393768]
[1763971923730,2.0,87051.0,87046.0,0.10328148]
[1763971923885,2.0,87051.0,87049.0,0.01167]
[1763971924102,2.0,87051.0,87050.0,0.01579]
[1763971925305,2.0,87051.0,87049.0,0.01167]
[1763971925511,2.0,87051.0,87040.0,0.00011768]
[1763971925731,0.59520448,87050.0,87043.0,0.10328148]
[1763971926670,0.59520448,87050.0,87044.0,0.14574709]
[1763971930372,2.00232,87045.0,87044.0,0.14574709]
[1763971930869,2.0,87049.0,87044.0,0.14574709]
[1763971931274,2.0,87049.0,87048.0,0.01579]
[1763971931476,2.0,87051.0,87048.0,0.01579]
[1763971931645,2.0,87051.0,87049.0,0.02406]
[1763971931980,2.0,87051.0,87045.0,0.10328148]
[1763971931981,2.0,87051.0,87046.0,0.01167]
[1763971932111,2.0,87051.0,87050.0,0.01579]
[1763971933431,2.0,87051.0,87050.0,0.03985]
[1763971933633,0.00025183,87052.0,87050.0,0.18559709]
[1763971933819,0.00025183,87052.0,87051.0,0.03985]
[1763971935425,0.00025183,87052.0,87051.0,0.23769958]
[1763971935900,0.00025183,87052.0,87051.0,0.23869958]
[1763971936085,0.00025183,87052.0,87051.0,0.23769958]
[1763971936290,0.00025183,87052.0,87051.0,0.23969958]
[1763971937300,0.00025183,87052.0,87051.0,0.18759709]
[1763971938759,0.00025183,87052.0,87051.0,0.21057212]
[1763971939840,0.00025183,87052.0,87051.0,0.26267461]
[1763971940057,0.00025183,87052.0,87051.0,0.23969958]
[1763971940215,0.59520448,87070.0,87051.0,0.23969958]
[1763971940216,0.44282385,87070.0,87051.0,0.23969958]
[1763971940416,0.44282385,87070.0,87069.0,0.02746]
[1763971940417,2.44282385,87070.0,87069.0,0.02746]
[1763971940602,2.0,87077.0,87069.0,0.17320709]
[1763971940797,2.0,87078.0,87069.0,0.17320709]
[1763971941560,2.0,87078.0,87069.0,0.15741709]
[1763971941561,2.0,87077.0,87069.0,0.15741709]
[1763971941864,2.0,87077.0,87070.0,0.10328148]
[1763971942081,2.0,87077.0,87076.0,0.01167]
[1763971943027,2.001,87077.0,87076.0,0.01167]
[1763971943451,2.0,87077.0,87076.0,0.02746]
[1763971943637,0.0118007,87078.0,87076.0,0.05152]
[1763971943839,0.0118007,87078.0,87077.0,0.01579]
[1763971944043,0.0118007,87078.0,87077.0,0.03985]
[1763971945167,0.0118007,87078.0,87077.0,0.04085]
[1763971945752,0.00011773,87078.0,87077.0,0.23769958]
[1763971945903,0.0004,87090.0,87080.0,0.08789247]
[1763971946080,0.00039234,87090.0,87089.0,0.18284397]
[1763971946473,0.37348101,87120.0,87090.0,0.05210249]
[1763971946675,2.0,87119.0,87116.0,0.10328148]
[1763971946925,2.0,87119.0,87099.0,0.01579]
[1763971947137,0.323,87118.0,87111.0,0.10328148]
[1763971947421,0.01193463,87120.0,87111.0,0.10328148]
[1763971947422,0.323,87114.0,87111.0,0.10328148]
[1763971947624,0.323,87112.0,87111.0,0.10328148]
[1763971948203,0.323,87112.0,87111.0,0.14313148]
[1763971949139,0.323,87118.0,87111.0,0.14413148]
[1763971949284,0.323,87114.0,87111.0,0.14413148]
[1763971949483,0.323,87112.0,87111.0,0.14413148]
[1763971949720,0.323,87112.0,87111.0,0.10428148]
[1763971949924,0.323,87112.0,87111.0,0.12007148]
[1763971950305,0.323,87112.0,87111.0,0.14313148]
[1763971950703,0.01193463,87120.0,87111.0,0.14313148]
[1763971951087,0.01193463,87120.0,87119.0,0.02746]
[1763971951239,0.01193463,87120.0,87119.0,0.07956249]
[1763971951592,0.0004,87130.0,87120.0,0.05210249]
[1763971951795,0.0004,87130.0,87129.0,0.02746]
[1763971951998,0.01182556,87130.0,87129.0,0.02746]
[1763971952132,0.01427856,87130.0,87129.0,0.05152]
[1763971952328,0.002853,87130.0,87129.0,0.05152]
[1763971952845,0.002853,87130.0,87129.0,0.10362249]
[1763971953862,0.002853,87130.0,87129.0,0.05252]
[1763971954363,0.002853,87130.0,87129.0,0.05352]
[1763971954943,0.002853,87130.0,87129.0,0.10562249]
[1763971958913,0.0004,87140.0,87130.0,0.07210247]
[1763971959122,0.0004,87140.0,87139.0,0.18588397]
[1763971959538,0.0004,87140.0,87139.0,0.21065397]
[1763971960988,0.0004,87140.0,87139.0,0.21165397]
[1763971961213,0.0004,87140.0,87139.0,0.21265397]
[1763971961422,0.0004,87140.0,87139.0,0.2356058]
[1763971961655,0.0004,87140.0,87139.0,0.21265397]
[1763971961849,0.0004,87140.0,87139.0,0.2356058]
[1763971962687,0.0004,87140.0,87139.0,0.01525]
[1763971962836,0.0004,87140.0,87139.0,0.002]
[1763971963434,2.36488,87140.0,87139.0,0.001]
[1763971963630,2.38203719,87140.0,87139.0,0.001]
[1763971964062,2.36488,87140.0,87139.0,0.001]
[1763971964280,2.36488,87140.0,87112.0,0.10328148]
[1763971964281,0.323,87137.0,87112.0,0.10328148]
[1763971964482,0.323,87121.0,87112.0,0.10328148]
[1763971964686,0.87126507,87122.0,87112.0,0.10328148]
[1763971965137,0.87126507,87122.0,87113.0,0.02295868]
[1763971965357,0.87126507,87122.0,87112.0,0.10328148]
[1763971965786,0.87226507,87122.0,87112.0,0.10328148]
[1763971966213,0.87226507,87122.0,87101.0,0.00139485]
[1763971966214,0.01107,87113.0,87101.0,0.00139485]
[1763971966353,0.01675,87110.0,87103.0,0.10328148]
[1763971966558,0.87126507,87111.0,87103.0,0.10328148]
[1763971966759,2.0,87110.0,87103.0,0.10328148]
[1763971970819,2.0,87110.0,87109.0,0.02966]
[1763971970995,0.00025146,87138.0,87109.0,0.02966]
[1763971970996,2.0,87121.0,87109.0,0.02966]
[1763971971216,0.87126507,87120.0,87109.0,0.01332]
[1763971971413,2.0,87119.0,87117.0,0.10328148]
[1763971971619,2.0,87126.0,87117.0,0.10328148]
[1763971972805,2.0,87126.0,87109.0,0.01332]
[1763971973478,2.0,87119.0,87103.0,0.10328148]
[1763971973633,0.87126507,87113.0,87103.0,0.10328148]
[1763971973860,0.87126507,87113.0,87076.0,0.00728]
[1763971973861,2.0,87112.0,87105.0,0.10328148]
[1763971974062,0.01106,87129.0,87106.0,0.02296053]
[1763971974063,2.0,87119.0,87106.0,0.02296053]
[1763971974265,2.0,87119.0,87111.0,0.01332]
[1763971974469,2.0,87125.0,87112.0,0.02295894]
[1763971974736,0.01106,87129.0,87105.0,0.10328148]
[1763971974737,2.0,87121.0,87105.0,0.10328148]
[1763971974956,0.87126507,87115.0,87105.0,0.10328148]
[1763971975155,0.01233,87106.0,87105.0,0.10328148]
[1763971975982,0.05248,87106.0,87089.0,0.10328148]
[1763971976133,0.01675,87102.0,87089.0,0.10328148]
[1763971976739,0.01233,87106.0,87095.0,0.01332]
[1763971976939,2.0,87105.0,87095.0,0.01332]
[1763971978156,2.0,87112.0,87104.0,0.01634]
[1763971978294,0.87126507,87120.0,87095.0,0.01332]
[1763971978295,2.0,87119.0,87095.0,0.01332]
[1763971978503,0.01233,87102.0,87095.0,0.01332]
[1763971978707,2.0,87110.0,87096.0,0.02296316]
[1763971978912,2.0,87110.0,87103.0,0.10328148]
[1763971979537,0.01233,87104.0,87103.0,0.10328148]
[1763971981356,0.02908,87104.0,87103.0,0.10328148]
[1763971982056,0.05263,87104.0,87103.0,0.10328148]
[1763971982301,0.02908,87104.0,87103.0,0.10328148]
[1763971982496,0.01233,87104.0,87103.0,0.10328148]
[1763971984378,0.01249,87109.0,87103.0,0.10328148]
[1763971984560,0.01249,87109.0,87104.0,0.02296105]
[1763971985340,0.87126507,87120.0,87104.0,0.04785105]
[1763971985749,2.0,87119.0,87104.0,0.04785105]
[1763971986100,2.0,87119.0,87104.0,0.02296105]
[1763971986271,2.0,87128.0,87117.0,0.10328148]
[1763971986664,0.017,87118.0,87117.0,0.10328148]
[1763971986887,0.02355,87127.0,87117.0,0.10328148]
[1763971986888,0.5,87127.0,87117.0,0.10328148]
[1763971987089,0.017,87118.0,87117.0,0.10328148]
[1763971988777,2.0,87128.0,87117.0,0.10328148]
[1763971990019,1.80950824,87128.0,87117.0,0.10328148]
[1763971990355,0.03461,87129.0,87117.0,0.10328148]
[1763971990554,0.02355,87127.0,87117.0,0.10328148]
[1763971993224,0.017,87118.0,87117.0,0.10328148]
[1763971993420,0.017,87118.0,87110.0,0.14574709]
[1763971993626,0.017,87118.0,87103.0,0.10328148]
[1763971993627,0.017,87111.0,87103.0,0.10328148]
[1763971993798,2.02355,87117.0,87103.0,0.10328148]
[1763971993799,0.02949,87104.0,87103.0,0.10328148]
[1763971994203,0.05304,87104.0,87103.0,0.10328148]
[1763971994604,0.05304,87104.0,87101.0,0.0015125]
[1763971994899,0.017,87102.0,87101.0,0.0015125]
[1763971995271,0.01249,87104.0,87101.0,0.0015125]
[1763971995487,0.01249,87104.0,87103.0,0.10328148]
[1763971996565,0.01249,87104.0,87101.0,0.0015125]
[1763971996742,0.017,87102.0,87101.0,0.0025125]
[1763971996954,0.017,87102.0,87101.0,0.0015125]
[1763971997298,0.017,87102.0,87101.0,0.0025125]
[1763971997437,0.04055,87102.0,87101.0,0.0025125]
[1763971997638,0.017,87102.0,87101.0,0.0025125]
[1763971997840,0.04055,87102.0,87101.0,0.0025125]
[1763971998064,0.04055,87102.0,87101.0,0.0035125]
[1763971998800,0.017,87102.0,87101.0,0.0035125]
[1763972000935,0.01249,87104.0,87101.0,0.0035125]
[1763972001133,0.02355,87116.0,87103.0,0.10328148]
[1763972001339,0.00025146,87138.0,87103.0,0.10328148]
[1763972001340,0.02355,87122.0,87104.0,0.02296105]
[1763972001576,2.0,87123.0,87104.0,0.02296105]
[1763972001974,2.02355,87123.0,87104.0,0.02296105]
[1763972002179,2.0,87128.0,87104.0,0.02296105]
[1763972002353,0.01106,87129.0,87117.0,0.10328148]
[1763972002354,2.0,87122.0,87117.0,0.10328148]
[1763972002782,0.017,87118.0,87117.0,0.10328148]
[1763972003194,0.04055,87118.0,87117.0,0.10328148]
[1763972004165,0.017,87118.0,87117.0,0.10328148]
[1763972004372,2.0,87123.0,87117.0,0.10328148]
[1763972004771,0.017,87118.0,87117.0,0.10428148]
[1763972005175,0.04055,87118.0,87117.0,0.10428148]
[1763972005722,0.017,87118.0,87117.0,0.10428148]
[1763972005878,0.017,87118.0,87117.0,0.10328148]
[1763972006487,0.04055,87118.0,87117.0,0.10328148]
[1763972007098,0.04055,87118.0,87117.0,0.10428148]
[1763972009159,0.51106,87129.0,87117.0,0.29257857]